[Event "34rd NATO Championship 2024"]
[Site "Rhodes"]
[Date "2024.10.22"]
[Round "2.42"]
[White "Ivbulis, Martins"]
[Black "Windey, Luc"]
[Result "1-0"]
[ECO "D00"]
[WhiteElo "1891"]
[BlackElo "1763"]
[Annotator "NA RC"]
[PlyCount "49"]
[EventDate "2024.09.18"]
[EventType "swiss"]
[EventCountry "GRE"]
[SourceTitle "playchess.com"]
[Source "ChessBase"]
[SourceQuality "1"]
[TimeControl "5400+30"]

1. d4 {[%emt 0:00:04]} d5 {[%emt 0:00:06]} 2. Nc3 {[%emt 0:00:07]} Nf6 {[%emt 0:00:08]} 3. Bf4 {[%emt 0:00:11]} Bf5 {[%emt 0:00:15]} 4. e3 {[%emt 0:00:22]} c6 {[%emt 0:00:07]} 5. f3 {[%emt 0:00:15]} e6 {[%emt 0:00:21]} 6. g4 {[%emt 0:00:18] D00: 1 d4 d5: Unusual lines.} Bg6 {[%emt 0:00:07]} 7. h4 {[%emt 0:00:05]} h6 {[%emt 0:00:34]} 8. Bd3 {[%emt 0:00:26]} Bxd3 {[%emt 0:00:39]} 9. Qxd3 {[%emt 0:00:13]} Bd6 {[%emt 0:00:06]} 10. Nge2 {[%emt 0:00:19]} Qc7 {[%emt 0:04:33]} 11. O-O-O {[%emt 0:00:46]} Nbd7 {[%emt 0:00:27]} 12. Bxd6 {[%emt 0:05:35]} Qxd6 {[%emt 0:00:23]} 13. e4 {[%emt 0:00:36]} e5 {[%emt 0:04:40]} 14. g5 {[%emt 0:03:01]} dxe4 {[%emt 0:04:33]} 15. Nxe4 {[%emt 0:10:17]} Nxe4 {[%emt 0:01:04]} 16. Qxe4 {[%emt 0:00:10]} O-O-O {[%emt 0:00:32]} 17. dxe5 {[%emt 0:00:14]} Qe6 {[%emt 0:02:03]} 18. f4 {[%emt 0:10:52]} Qxa2 {[%emt 0:00:31]} 19. Nc3 {[%emt 0:01:49]} Qe6 {[%emt 0:16:54] [#]} (19... Qa1+ $11 {should be considered.} 20. Nb1 Qa2) 20. Qa4 {[%emt 0:07:13]} (20. gxh6 $1 $16 Qxh6 21. Rd6) 20... Kb8 {[%emt 0:02:06]} (20... Nb6 $14 21. Qxa7 Kc7 22. Rxd8 Rxd8) 21. Rd6 {[%emt 0:08:01]} Qe7 {[%emt 0:02:59]} 22. Rhd1 $16 {[%emt 0:01:02]} Nb6 {[%emt 0:24:19]} 23. Qd4 {[%emt 0:03:03]} Kc7 {[%emt 0:03:08]} 24. Qc5 {[%emt 0:00:57]} Nd7 {[%emt 0:04:29]} 25. Rxc6+ {[%emt 0:00:12]} 1-0

[Event "34rd NATO Championship 2024"]
[Site "Rhodes"]
[Date "2024.10.22"]
[Round "2.43"]
[White "Chapman, Chas"]
[Black "Dowd, Patrick"]
[Result "1/2-1/2"]
[ECO "C01"]
[WhiteElo "1696"]
[BlackElo "1885"]
[Annotator "NA RC"]
[PlyCount "57"]
[EventDate "2024.09.18"]
[EventType "swiss"]
[EventCountry "GRE"]
[SourceTitle "playchess.com"]
[Source "ChessBase"]
[SourceQuality "1"]
[TimeControl "5400+30"]

1. e4 {[%emt 0:00:16]} e6 {[%emt 0:00:05]} 2. Nc3 {[%emt 0:00:47]} d5 {[%emt 0:00:18]} 3. exd5 {[%emt 0:01:37]} exd5 {[%emt 0:00:09]} 4. d4 {[%emt 0:00:38]} c6 {[%emt 0:00:18]} 5. Nf3 {[%emt 0:01:05]} Bd6 {[%emt 0:00:19]} 6. Be2 {[%emt 0:03:19]} Ne7 {[%emt 0:00:17]} 7. Be3 {[%emt 0:02:59] C01: French: Exchange Variation.} Bf5 {[%emt 0:00:52]} 8. Bd3 {[%emt 0:03:41]} f6 {[%emt 0:01:25]} 9. Bxf5 {[%emt 0:04:02]} Nxf5 {[%emt 0:00:09]} 10. Bd2 {[%emt 0:01:18]} O-O {[%emt 0:06:14]} 11. O-O {[%emt 0:00:40]} Qd7 {[%emt 0:00:58]} 12. Re1 {[%emt 0:02:47]} Na6 {[%emt 0:00:35]} 13. Ne2 {[%emt 0:05:58]} Nc7 {[%emt 0:04:43]} 14. Bf4 {[%emt 0:05:27]} Rae8 {[%emt 0:02:04]} 15. Bxd6 {[%emt 0:01:58]} Nxd6 {[%emt 0:01:39]} 16. Ng3 {[%emt 0:10:49]} Nf5 {[%emt 0:06:01]} 17. Rxe8 {[%emt 0:03:09]} Rxe8 {[%emt 0:00:38]} 18. Nxf5 {[%emt 0:00:30]} Qxf5 {[%emt 0:00:08]} 19. Qd2 {[%emt 0:01:16]} b6 {[%emt 0:12:54]} 20. Re1 {[%emt 0:01:11]} Rxe1+ {[%emt 0:05:41]} 21. Nxe1 {[%emt 0:00:11]} Kf7 {[%emt 0:01:31]} 22. Qd3 {[%emt 0:05:20]} Qxd3 {[%emt 0:07:32]} 23. Nxd3 {[%emt 0:03:31]} a5 {[%emt 0:47:30]} 24. f3 $11 {[%emt 0:40:01]} Nb5 {[%emt 0:03:22]} 25. c3 {[%emt 0:00:00]} g5 {[%emt 0:01:13]} 26. Kf2 {[%emt 0:00:00]} h5 {[%emt 0:00:29]} 27. g3 {[%emt 0:00:00]} Nd6 28. Ke2 {[%emt 0:00:00]} Ke6 29. Nf2 {[%emt 0:02:30]} 1/2-1/2

[Event "34rd NATO Championship 2024"]
[Site "Rhodes"]
[Date "2024.10.22"]
[Round "2.44"]
[White "Boudry, Rik"]
[Black "Dino, Giuseppe"]
[Result "0-1"]
[ECO "C00"]
[WhiteElo "1671"]
[BlackElo "1884"]
[Annotator "NA RC"]
[PlyCount "70"]
[EventDate "2024.09.18"]
[EventType "swiss"]
[EventCountry "GRE"]
[SourceTitle "playchess.com"]
[Source "ChessBase"]
[SourceQuality "1"]
[TimeControl "5400+30"]

1. e4 {[%emt 0:00:08]} e6 {[%emt 0:00:10]} 2. d3 {[%emt 0:00:20]} d5 {[%emt 0:00:10]} 3. Nd2 {[%emt 0:00:12]} c5 {[%emt 0:00:17]} 4. Ngf3 {[%emt 0:00:34]} Nc6 {[%emt 0:00:17]} 5. g3 {[%emt 0:01:06]} Nf6 {[%emt 0:01:35]} 6. Bg2 {[%emt 0:00:48]} Be7 {[%emt 0:00:27]} 7. O-O {[%emt 0:00:44]} O-O {[%emt 0:00:05]} 8. Re1 {[%emt 0:01:20]} dxe4 {[%emt 0:03:07]} 9. dxe4 {[%emt 0:01:46]} e5 {[%emt 0:00:15]} 10. Nc4 {[%emt 0:02:34] C00: French: Unusual White 2nd moves.} Qc7 {[%emt 0:00:06]} 11. Bg5 {[%emt 0:02:16] Recently 11.Ne3 got a lot of attention.} Rd8 {[%emt 0:00:32]} 12. Qe2 {[%emt 0:01:55]} Bg4 $146 {[%emt 0:24:19]} ({Predecessor:} 12... Nd4 13. Nxd4 cxd4 14. f4 exf4 15. gxf4 h6 16. Bxf6 Bxf6 17. e5 Be7 18. Be4 Be6 {0-1 Doerflinger,J (2295)-Wutzke,R Oberliga Wuerttemberg 9596 1995}) 13. c3 {[%emt 0:05:09]} h6 {[%emt 0:00:04]} 14. Bxf6 {[%emt 0:00:39]} Bxf6 {[%emt 0:00:08]} 15. Ne3 {[%emt 0:00:26]} Be6 {[%emt 0:00:01]} 16. Nd2 {[%emt 0:07:08]} Ne7 {[%emt 0:00:13]} 17. b3 {[%emt 0:04:34]} (17. h4 $14) 17... Qa5 {[%emt 0:00:42]} 18. Rec1 {[%emt 0:03:08]} Rd7 {[%emt 0:00:28]} 19. Ndc4 {[%emt 0:02:17]} Qc7 {[%emt 0:00:01]} 20. Ng4 {[%emt 0:06:00]} Rad8 {[%emt 0:02:03]} (20... Bg5 $11 21. Rd1 Bxc4 22. bxc4 (22. Qxc4 Bd2 $11) 22... Rad8) 21. Nxf6+ {[%emt 0:04:42]} gxf6 {[%emt 0:00:01]} 22. Qh5 {[%emt 0:01:24]} Kg7 {[%emt 0:00:01]} 23. Bh3 {[%emt 0:00:55]} Qc6 {[%emt 0:03:46]} 24. Bxe6 {[%emt 0:00:46]} fxe6 {[%emt 0:01:14]} 25. Re1 {[%emt 0:04:59]} b5 {[%emt 0:00:35]} 26. Nxe5 {[%emt 0:01:22]} fxe5 {[%emt 0:00:02]} 27. Qxe5+ {[%emt 0:00:09]} Kh7 {[%emt 0:00:14]} 28. Qh5 {[%emt 0:04:51]} Ng6 {[%emt 0:00:08]} 29. Qf3 {[%emt 0:02:22]} Rf8 {[%emt 0:00:03]} 30. Qe2 {[%emt 0:00:22]} e5 {[%emt 0:00:12]} 31. Rad1 {[%emt 0:00:23]} Rg7 {[%emt 0:02:32]} 32. Kh1 {[%emt 0:01:29]} Qe6 {[%emt 0:00:25]} 33. Qxb5 {[%emt 0:03:44]} Rxf2 {[%emt 0:00:01]} 34. Rf1 {[%emt 0:00:11]} Qf6 $19 {[%emt 0:00:44]} (34... Rxa2 35. Ra1 Rc2) 35. a4 {[%emt 0:04:19]} Qf3+ {[%emt 0:00:08]} 0-1

[Event "34rd NATO Championship 2024"]
[Site "Rhodes"]
[Date "2024.10.22"]
[Round "2.45"]
[White "Sherpa, Ngadi"]
[Black "Huidiu, Vasile-Cristian"]
[Result "0-1"]
[ECO "B13"]
[WhiteElo "1882"]
[BlackElo "1729"]
[Annotator "NA RC"]
[PlyCount "78"]
[EventDate "2024.09.18"]
[EventType "swiss"]
[EventCountry "GRE"]
[SourceTitle "playchess.com"]
[Source "ChessBase"]
[SourceQuality "1"]
[TimeControl "5400+30"]

1. e4 {[%emt 0:00:25]} c6 {[%emt 0:00:27]} 2. d4 {[%emt 0:00:38]} d5 {[%emt 0:00:22]} 3. exd5 {[%emt 0:00:30]} cxd5 {[%emt 0:00:07]} 4. Nf3 {[%emt 0:00:26]} Nc6 {[%emt 0:01:33]} 5. Nc3 {[%emt 0:01:39]} Bg4 {[%emt 0:03:07]} 6. Bb5 {[%emt 0:00:56] B13: Caro-Kann: Exchange Variation and Panov-Botvinnik Attack.} Rc8 {[%emt 0:02:30]} 7. Qd3 {[%emt 0:00:56]} Bxf3 {[%emt 0:00:23]} 8. Qxf3 {[%emt 1:29:00]} e6 {[%emt 0:01:32]} 9. a3 {[%emt 0:00:00]} Be7 {[%emt 0:02:38]} 10. Be3 {[%emt 0:00:00]} Bf6 {[%emt 0:01:29]} 11. O-O {[%emt 0:00:00]} Nge7 {[%emt 0:00:28]} 12. Rad1 {[%emt 0:00:00]} a6 {[%emt 0:04:23]} 13. Bxc6+ {[%emt 0:00:00]} Rxc6 {[%emt 0:00:40]} 14. Rd2 {[%emt 0:00:00]} b5 {[%emt 0:02:51]} 15. Na2 {[%emt 0:00:00]} a5 {[%emt 0:01:16]} 16. Qe2 {[%emt 0:00:00]} Qb6 {[%emt 0:07:57]} 17. c3 {[%emt 0:00:00]} Nf5 {[%emt 0:02:04]} 18. Qg4 {[%emt 0:00:00]} Nd6 {[%emt 0:11:00]} 19. Re2 {[%emt 0:00:00]} h5 {[%emt 0:04:53]} 20. Qf3 {[%emt 0:00:00]} Ne4 {[%emt 0:01:35]} 21. Rfe1 {[%emt 0:00:00]} Ke7 {[%emt 0:03:19]} 22. h3 {[%emt 0:07:00]} g5 {[%emt 0:00:24]} 23. g3 {[%emt 0:00:00]} Rcc8 {[%emt 0:00:35]} 24. Qg2 {[%emt 0:00:00]} Qd6 {[%emt 0:00:45]} 25. Nc1 {[%emt 0:00:00]} Rcg8 {[%emt 0:01:11]} 26. Nd3 {[%emt 0:00:00]} g4 {[%emt 0:06:12]} 27. Bf4 {[%emt 0:00:00]} Qd8 {[%emt 0:03:38]} 28. h4 {[%emt 0:03:00]} Kf8 {[%emt 0:37:11]} 29. Be5 {[%emt 0:00:30]} Rh6 {[%emt 0:00:00]} 30. Bxf6 {[%emt 0:00:30]} Rxf6 {[%emt 0:00:00]} 31. Nf4 {[%emt 0:00:00]} Rxf4 {[%emt 0:00:00]} 32. gxf4 {[%emt 0:00:00]} Qxh4 {[%emt 0:00:00]} 33. Rxe4 {[%emt 0:00:00]} dxe4 {[%emt 0:00:00]} 34. Rxe4 $17 {[%emt 0:00:00]} Qf6 {[%emt 0:00:00]} 35. Re5 {[%emt 0:00:00]} Qxf4 {[%emt 0:00:00]} 36. Rxb5 {[%emt 0:00:00]} g3 {[%emt 0:00:00]} 37. f3 {[%emt 0:00:00]} Qc1+ {[%emt 0:00:00]} 38. Qf1 {[%emt 0:00:00]} Qe3+ {[%emt 0:00:00]} 39. Kg2 {[%emt 0:00:00]} Qd2+ {[%emt 0:05:30]} 0-1

[Event "34rd NATO Championship 2024"]
[Site "Rhodes"]
[Date "2024.10.22"]
[Round "2.46"]
[White "Buruiana, Bogdan-Marian"]
[Black "Steffers, Hendrik"]
[Result "0-1"]
[ECO "B30"]
[WhiteElo "1579"]
[BlackElo "1882"]
[Annotator "NA RC"]
[PlyCount "96"]
[EventDate "2024.09.18"]
[EventType "swiss"]
[EventCountry "GRE"]
[SourceTitle "playchess.com"]
[Source "ChessBase"]
[SourceQuality "1"]
[TimeControl "5400+30"]

1. e4 {[%emt 0:00:04]} c5 {[%emt 0:00:18]} 2. c3 {[%emt 0:00:14]} e5 {[%emt 0:01:13]} 3. Nf3 {[%emt 0:01:18]} Nc6 {[%emt 0:00:52]} 4. Bb5 {[%emt 0:01:16]} Nge7 {[%emt 0:01:37]} 5. O-O {[%emt 0:03:24]} a6 {[%emt 0:00:18]} 6. Bc4 {[%emt 0:03:59] B30: Sicilian: 2...Nc6 3 Bb5, lines without ...g6.} h6 {[%emt 0:01:46]} 7. Qb3 {[%emt 0:07:07]} d5 {[%emt 0:04:37]} 8. Bxd5 {[%emt 0:03:36]} Nxd5 {[%emt 0:00:49]} 9. Qxd5 {[%emt 0:00:27]} Be6 {[%emt 0:00:59]} 10. Qxd8+ {[%emt 0:00:40]} Rxd8 {[%emt 0:00:10]} 11. Rd1 {[%emt 0:09:03]} c4 {[%emt 0:04:18]} 12. Na3 {[%emt 0:03:02]} Bc5 {[%emt 0:02:19]} 13. Nc2 {[%emt 0:03:06]} O-O {[%emt 0:10:12]} 14. Nce1 {[%emt 0:09:09]} f5 {[%emt 1:08:02]} 15. exf5 {[%emt 0:08:58]} Rxf5 {[%emt 0:00:00]} (15... Bxf5 $19 {is more deadly.} 16. b4 Ba7) 16. d4 {[%emt 0:04:24]} cxd3 {[%emt 0:00:00]} 17. Be3 {[%emt 0:03:49]} Bxe3 {[%emt 0:00:00]} 18. fxe3 {[%emt 0:00:09]} e4 {[%emt 0:00:00]} 19. Nd4 {[%emt 0:05:55]} Nxd4 {[%emt 0:00:00]} 20. cxd4 {[%emt 0:00:07]} Rdf8 {[%emt 0:00:00]} 21. Nxd3 {[%emt 0:05:11]} exd3 {[%emt 0:00:00]} 22. Rxd3 {[%emt 0:00:03]} Bc4 23. Rdd1 {[%emt 0:26:59]} Rf2 $19 {[%emt 0:00:00]} 24. b3 {[%emt 0:00:00]} Bd5 {[%emt 0:00:00]} 25. Rf1 {[%emt 0:00:00]} Rxg2+ {[%emt 0:00:00]} 26. Kh1 {[%emt 0:00:00]} Rxa2+ {[%emt 0:00:00]} 27. Kg1 {[%emt 0:00:00]} Rg2+ {[%emt 0:00:00]} 28. Kh1 {[%emt 0:00:00]} Re2+ {[%emt 0:00:00]} 29. Kg1 {[%emt 0:00:00]} Rxe3 {[%emt 0:00:00]} 30. Rxf8+ {[%emt 0:00:00]} Kxf8 {[%emt 0:00:00]} 31. b4 {[%emt 0:00:00]} Rd3 {[%emt 0:00:00]} 32. Rf1+ {[%emt 0:00:00]} Ke7 {[%emt 0:00:00]} 33. Rf4 {[%emt 0:00:00]} Rb3 {[%emt 0:00:00]} 34. Kf2 {[%emt 0:00:00]} Rxb4 {[%emt 0:00:00]} 35. Ke3 {[%emt 0:00:00]} Rb3+ {[%emt 0:00:00]} 36. Kd2 {[%emt 0:00:00]} a5 {[%emt 0:00:00]} 37. Rf5 {[%emt 0:00:00]} Kd6 {[%emt 0:00:00]} 38. Re5 {[%emt 0:00:00]} Rb2+ {[%emt 0:00:00]} 39. Kc3 {[%emt 0:00:00]} Rxh2 {[%emt 0:00:00]} 40. Re1 {[%emt 0:00:00]} b5 {[%emt 0:00:00]} 41. Ra1 {[%emt 0:00:00]} a4 {[%emt 0:00:00]} 42. Kb4 {[%emt 0:00:00]} Bc4 {[%emt 0:00:00]} 43. Rg1 {[%emt 0:00:00]} g5 {[%emt 0:00:00]} 44. Rg4 {[%emt 0:00:00]} Rb2+ {[%emt 0:00:00]} 45. Kc3 {[%emt 0:00:00]} Rb3+ {[%emt 0:00:00]} 46. Kc2 {[%emt 0:00:00]} Rf3 {[%emt 0:00:00]} 47. Kb2 {[%emt 0:00:00]} a3+ {[%emt 0:00:00]} 48. Ka1 {[%emt 0:00:00]} Rf1# {[%emt 0:17:00]} 0-1

[Event "34rd NATO Championship 2024"]
[Site "Rhodes"]
[Date "2024.10.22"]
[Round "2.47"]
[White "Middaugh, Jon S"]
[Black "O`Byrne, Daniel"]
[Result "1/2-1/2"]
[ECO "A57"]
[WhiteElo "1877"]
[BlackElo "1748"]
[Annotator "NA RC"]
[PlyCount "36"]
[EventDate "2024.09.18"]
[EventType "swiss"]
[EventCountry "GRE"]
[SourceTitle "playchess.com"]
[Source "ChessBase"]
[SourceQuality "1"]
[TimeControl "5400+30"]

1. d4 {[%emt 0:00:04]} Nf6 {[%emt 0:00:17]} 2. c4 {[%emt 0:00:11]} c5 {[%emt 0:00:12]} 3. d5 {[%emt 0:00:14]} b5 {[%emt 0:01:21]} 4. cxb5 {[%emt 0:00:15]} a6 {[%emt 0:00:12]} 5. b6 {[%emt 0:00:19]} Qxb6 {[%emt 0:00:27]} 6. Nc3 {[%emt 0:00:28]} d6 {[%emt 0:00:28]} 7. e4 {[%emt 0:01:04]} g6 {[%emt 0:00:23]} 8. Qc2 {[%emt 0:02:03]} Bg7 {[%emt 0:00:23]} 9. h3 {[%emt 0:03:05]} Bd7 {[%emt 0:00:48]} 10. Nf3 {[%emt 0:00:31]} Bb5 {[%emt 0:02:36]} 11. Bd3 {[%emt 0:02:36]} Nfd7 {[%emt 0:03:14]} 12. O-O {[%emt 0:01:32]} Bxd3 {[%emt 0:00:10]} 13. Qxd3 {[%emt 0:00:18]} Ne5 {[%emt 0:00:14]} 14. Nxe5 {[%emt 0:01:13]} Bxe5 {[%emt 0:00:09]} 15. Rb1 {[%emt 0:05:44]} O-O {[%emt 0:02:32]} 16. b3 {[%emt 0:07:29]} Nd7 {[%emt 0:03:49]} 17. Bb2 {[%emt 0:00:23]} Rfb8 {[%emt 0:04:35]} 18. Na4 {[%emt 0:06:04]} Qb5 {[%emt 0:00:33]} 1/2-1/2

[Event "34rd NATO Championship 2024"]
[Site "Rhodes"]
[Date "2024.10.22"]
[Round "2.48"]
[White "Bublys, Vaidotas"]
[Black "Abbate, Giovanni"]
[Result "1-0"]
[ECO "B22"]
[WhiteElo "1872"]
[BlackElo "1695"]
[Annotator "NA RC"]
[PlyCount "117"]
[EventDate "2024.09.18"]
[EventType "swiss"]
[EventCountry "GRE"]
[SourceTitle "playchess.com"]
[Source "ChessBase"]
[SourceQuality "1"]
[TimeControl "5400+30"]

1. e4 {[%emt 0:00:15]} c5 {[%emt 0:00:04]} 2. c3 {[%emt 0:00:17]} Nc6 {[%emt 0:00:38]} 3. d4 {[%emt 0:00:24]} cxd4 {[%emt 0:00:18]} 4. cxd4 {[%emt 0:00:08]} e6 {[%emt 0:00:10]} 5. Nf3 {[%emt 0:00:41]} a6 {[%emt 0:00:06]} 6. a3 {[%emt 0:01:06] B22: Sicilian: 2 c3.} Nf6 {[%emt 0:00:39]} 7. Nc3 {[%emt 0:00:47]} b5 {[%emt 0:01:13]} 8. b4 {[%emt 0:11:59]} d5 {[%emt 0:01:54]} 9. e5 {[%emt 0:01:26]} Ne4 {[%emt 0:05:07]} 10. Qc2 {[%emt 0:04:11]} Nxc3 {[%emt 0:20:40]} 11. Qxc3 {[%emt 0:01:01]} Bd7 {[%emt 0:00:15]} 12. Bd3 {[%emt 0:03:55]} Rc8 {[%emt 0:00:55]} 13. Qb2 {[%emt 0:03:19]} Be7 {[%emt 0:04:43]} 14. Nd2 {[%emt 0:06:03]} f6 {[%emt 0:00:31]} 15. f4 {[%emt 0:05:02]} fxe5 {[%emt 0:01:53]} 16. fxe5 {[%emt 0:04:31]} O-O {[%emt 0:00:31]} 17. Rf1 {[%emt 0:00:39]} Rxf1+ {[%emt 0:04:03]} 18. Kxf1 {[%emt 0:01:17]} Qf8+ {[%emt 0:00:10]} 19. Kg1 {[%emt 0:04:56]} Bd8 {[%emt 0:01:15]} 20. Nb3 {[%emt 0:01:17]} Bb6 {[%emt 0:02:10]} 21. Nc5 {[%emt 0:02:02]} Qe7 {[%emt 0:05:25]} 22. Be3 {[%emt 0:01:57]} Bxc5 {[%emt 0:01:48]} 23. bxc5 {[%emt 0:01:40]} Rf8 $14 {[%emt 0:00:48]} 24. Qc2 {[%emt 0:05:22]} g6 {[%emt 0:01:02]} 25. Qd2 {[%emt 0:02:05]} Qh4 {[%emt 0:03:33]} 26. Be2 {[%emt 0:03:59]} Rf7 {[%emt 0:11:14]} 27. Rd1 {[%emt 0:01:00]} Qd8 {[%emt 0:01:54]} 28. Bg5 {[%emt 0:04:44]} Qa5 {[%emt 0:00:22]} 29. Qe3 {[%emt 0:01:03]} Ne7 {[%emt 0:03:37]} 30. Qc1 {[%emt 0:06:01]} Nc6 {[%emt 0:01:14]} 31. h4 {[%emt 0:00:56]} Qa4 {[%emt 0:01:25]} 32. Qe3 {[%emt 0:01:43]} Ne7 {[%emt 0:02:58]} 33. h5 {[%emt 0:01:09]} Nf5 {[%emt 0:00:16]} 34. Qc3 {[%emt 0:01:01]} gxh5 {[%emt 0:02:50]} 35. Bf6 {[%emt 0:03:27]} Rf8 {[%emt 0:01:58]} 36. c6 {[%emt 0:03:28]} b4 {[%emt 0:02:51]} 37. axb4 {[%emt 0:02:05]} Qxc6 {[%emt 0:01:30]} 38. Qd2 {[%emt 0:00:12]} Be8 {[%emt 0:00:58]} 39. Qg5+ {[%emt 0:00:59]} Bg6 {[%emt 0:00:27]} 40. Bxh5 {[%emt 0:00:51]} Rf7 {[%emt 0:11:51]} 41. Bxg6 {[%emt 0:04:42]} hxg6 {[%emt 0:00:26]} 42. Rc1 {[%emt 0:00:26]} Qb7 {[%emt 0:01:50]} 43. Qxg6+ {[%emt 0:00:36]} Ng7 {[%emt 0:00:11]} 44. Bxg7 {[%emt 0:01:08]} Rxg7 {[%emt 0:00:16]} 45. Qe8+ {[%emt 0:00:09]} Kh7 {[%emt 0:00:20]} 46. Rc3 {[%emt 0:00:29]} Qf7 {[%emt 0:02:06]} 47. Rh3+ {[%emt 0:00:25]} Kg6 {[%emt 0:00:10]} 48. Qa4 {[%emt 0:00:44]} Qf4 {[%emt 0:00:29]} 49. Qc2+ {[%emt 0:01:50]} Qf5 {[%emt 0:00:41]} 50. Qc3 {[%emt 0:01:51]} Qf7 {[%emt 0:02:56]} 51. Qg3+ {[%emt 0:00:35]} Kf5 {[%emt 0:00:09]} 52. Qh4 {[%emt 0:02:20]} Qg8 {[%emt 0:00:52]} 53. Rf3+ {[%emt 0:00:18]} Kg6 {[%emt 0:00:24]} 54. Qf6+ {[%emt 0:00:11]} Kh5 {[%emt 0:00:26]} 55. Rh3+ {[%emt 0:00:35]} Kg4 {[%emt 0:00:15]} 56. Qh4+ {[%emt 0:00:52]} Kf5 {[%emt 0:00:12]} 57. Rf3+ {[%emt 0:00:37]} Kg6 {[%emt 0:00:14]} 58. Qg4+ {[%emt 0:00:21]} Kh7 {[%emt 0:00:14]} 59. Rh3# {[%emt 0:00:07]} 1-0

[Event "34rd NATO Championship 2024"]
[Site "Rhodes"]
[Date "2024.10.22"]
[Round "3.1"]
[White "Alexakis, Dimitris"]
[Black "Tustanowski, Mateusz"]
[Result "1-0"]
[ECO "C66"]
[WhiteElo "2504"]
[BlackElo "2081"]
[Annotator "TA"]
[PlyCount "59"]
[EventDate "2024.09.18"]
[EventType "swiss"]
[EventCountry "GRE"]
[SourceTitle "playchess.com"]
[Source "ChessBase"]
[SourceQuality "1"]
[TimeControl "5400+30"]

{[%evp 9,59,15,72,61,71,54,49,7,1,0,37,22,22,20,26,25,22,4,41,33,43,4,13,5,13,21,43,50,29,30,52,54,50,53,266,262,490,484,627,600,1205,1219,1187,1260,1138,780,1435,1329,1180,1156,1122,761]} 1. e4 {[%emt 0:02:07]} e5 {[%emt 0:00:29]} 2. Nf3 {[%emt 0:00:18]} Nc6 {[%emt 0:00:14]} 3. Bb5 {[%emt 0:01:16]} Nf6 {[%emt 0:00:32]} 4. d3 {[%emt 0:00:19][%cal Bd2d3,Bd3d4][%mdl 32]} d6 {[%emt 0:05:47]} 5. O-O {[%emt 0:06:54]} g6 {[%emt 0:09:42]} (5... Be7 $11 {keeps the balance.}) 6. d4 $16 {[%emt 0:12:57] White is more active.} Bd7 {[%emt 0:34:36]} 7. Re1 {[%emt 0:08:35]} Bg7 {[%emt 0:11:19]} 8. Bxc6 {[%emt 0:05:09] White is slightly better.} Bxc6 {[%emt 0:00:06]} 9. Nc3 {[%emt 0:00:20]} exd4 {[%emt 0:04:18]} 10. Nxd4 {[%emt 0:01:43]} O-O {[%emt 0:00:19]} 11. Bg5 {[%emt 0:00:53]} h6 {[%emt 0:00:22]} 12. Bh4 {[%emt 0:55:59]} Qd7 13. f3 {[%emt 0:00:00]} Nh5 {[%emt 0:03:00]} 14. Qd2 {[%emt 0:01:00]} Rae8 {[%emt 0:04:24]} 15. b4 {[%emt 0:00:00]} a6 {[%emt 0:03:21]} 16. Rad1 {[%emt 0:00:00]} f5 {[%emt 0:14:03] [#]} 17. a4 $1 {[%emt 0:00:00][%cal Ba2a4,Ba4b5,Bb5c6,Bc6b7][%mdl 32] Strongly threatening b5.} fxe4 {[%emt 0:05:33]} (17... g5 {simplifies} 18. Bf2 Bxd4 19. Qxd4 Rf7) 18. b5 $1 {[%emt 0:00:00]} axb5 {[%emt 0:00:04]} 19. axb5 {[%emt 0:00:00]} exf3 {[%emt 0:00:47][%cal Od7g4] White must now prevent ...Qg4!} 20. Rxe8 {[%emt 0:00:00]} Qxe8 {[%emt 0:00:58]} 21. bxc6 {[%emt 0:00:00]} fxg2 $2 {[%emt 0:00:15] This costs Black the game.} (21... Bxd4+ $1 $14 22. Qxd4 Qxc6) 22. cxb7 $18 {[%emt 0:00:00] Threatens to win with Bf2.} Nf4 $2 {[%emt 0:00:33]} (22... Kh7 23. Qe2 (23. Qxg2 Bxd4+ 24. Rxd4 Qe3+ $16) (23. Kxg2 Qf7 $18) 23... Bxd4+ 24. Rxd4 Rf1+ 25. Kxg2 Qxe2+ 26. Nxe2 Rb1) 23. Bg3 {[%emt 0:00:00] White is clearly winning.} c5 {[%emt 0:00:42]} 24. Ndb5 {[%emt 0:00:00]} (24. Bxf4 Bxd4+ 25. Kxg2 Qc6+ 26. Kg3 g5 $11) 24... Nh3+ {[%emt 0:00:33]} 25. Kxg2 {[%emt 0:00:00]} Ng5 {[%emt 0:00:25]} 26. Nxd6 {[%emt 0:00:00]} Qd7 {[%emt 0:00:20]} 27. Qd5+ {[%emt 0:00:00]} Kh7 {[%emt 0:00:12] [#]} 28. Nf5 $1 {[%emt 0:00:00][%mdl 512]} Qxf5 {[%emt 0:00:49]} (28... Qxd5+ 29. Nxd5) 29. Qxf5 {[%emt 0:00:00]} (29. b8=B $2 {is the wrong capture.} Qh3+ (29... Bxc3 30. Qxf5 gxf5 31. Rd5 $17) (29... Qxc2+ $2 30. Qd2 $19) 30. Kg1 Bd4+ $19 (30... Bxc3 31. Qd7+ Qxd7 32. Rxd7+ Kg8 33. Kg2 $15) (30... Bxc3 31. Qd7+ Qxd7 32. Rxd7+ Kg8 33. Kg2 $15)) 29... gxf5 {[%emt 0:00:04]} 30. Nd5 {[%emt 0:00:00] Weighted Error Value: White=0.10 (very precise) /Black=0.65.  Loses game:     	---       	Black=1      Mistake:       	---       	Black=1      Inaccurate:     	White=2     	Black=3      OK:         	White=5     	Black=4      Best:        	White=2     	---        Strong:       	White=1     	---} ({And not} 30. b8=B Bxc3 31. Bbe5 Ne4 $15) 1-0

[Event "34rd NATO Championship 2024"]
[Site "Rhodes"]
[Date "2024.10.22"]
[Round "3.2"]
[White "Pavlidou, Ekaterini"]
[Black "Stein, Robert"]
[Result "1/2-1/2"]
[ECO "D30"]
[WhiteElo "2153"]
[BlackElo "2409"]
[Annotator "RC"]
[PlyCount "31"]
[EventDate "2024.09.18"]
[EventType "swiss"]
[EventCountry "GRE"]
[SourceTitle "playchess.com"]
[Source "ChessBase"]
[SourceQuality "1"]
[TimeControl "5400+30"]

1. d4 {[%emt 0:01:07]} d5 {[%emt 0:00:20]} 2. c4 {[%emt 0:00:37]} e6 {[%emt 0:00:11]} 3. Nf3 {[%emt 0:00:23]} h6 {[%emt 0:00:41]} 4. g3 {[%emt 0:03:08]} Nf6 {[%emt 0:00:34]} 5. Bg2 {[%emt 0:01:15]} Bd6 {[%emt 0:01:48]} 6. O-O {[%emt 0:00:11]} O-O {[%emt 0:00:07]} 7. b3 {[%emt 0:01:00]} b6 {[%emt 0:10:28]} 8. Bb2 {[%emt 0:00:12]} Bb7 {[%emt 0:00:34]} 9. Nc3 {[%emt 0:02:45]} dxc4 {[%emt 0:09:51]} 10. bxc4 {[%emt 0:00:58]} Nbd7 {[%emt 0:00:54]} 11. Qc2 {[%emt 0:04:24]} c5 {[%emt 0:01:19]} 12. d5 {[%emt 0:01:44]} exd5 {[%emt 0:02:32]} 13. cxd5 {[%emt 0:01:25]} Ne5 {[%emt 0:05:15]} 14. Nd2 {[%emt 0:04:08]} Rc8 {[%emt 0:08:18]} 15. Rad1 {[%emt 0:03:08]} Re8 {[%emt 0:06:22]} 16. e4 {[%emt 1:12:05]} 1/2-1/2